fUST/lending_fUST_20250717
["ID","MTS","AMOUNT","RATE_DAILY","PERIOD"]
[372611997,1752703844186,-460.0,0.00021773,2]
[372611998,1752703844196,-460.0,0.00021773,2]
[372611999,1752703844205,-460.0,0.00021773,2]
[372612000,1752703844216,-460.0,0.00021773,2]
[372612001,1752703844225,-460.0,0.00021773,2]
[372612002,1752703844235,-460.0,0.00021773,2]
[372612003,1752703844244,-460.0,0.00021773,2]
[372612004,1752703844254,-460.0,0.00021773,2]
[372612005,1752703844263,-460.0,0.00021773,2]
[372612006,1752703844272,-460.0,0.00021773,2]
[372612007,1752703844282,-460.0,0.00021823,2]
[372612008,1752703844292,-500.0,0.0002184,2]
[372612009,1752703844301,-500.0,0.0002184,2]
[372612010,1752703844310,-298.93991668,0.0002184,2]
[372612011,1752703844319,-305.15517548,0.0002184,2]
[372612012,1752703844328,-17664.72973427,0.000219,3]
[372612013,1752703844338,-200.0,0.00021918,2]
[372612014,1752703844347,-750.64118505,0.00021922,2]
[372612015,1752703844357,-1664.07149989,0.00021969,6]
[372612016,1752703844366,-250.0,0.00021973,2]
[372612017,1752703844376,-14300.23978458,0.00022,2]
[372612018,1752703844385,-15360.33,0.00022,7]
[372612019,1752703844395,-3122.59,0.00022,7]
[372612020,1752703844404,-165.0,0.00022,2]
[372612021,1752703844414,-165.0,0.00022,2]
[372612022,1752703844423,-1874.66,0.00022,7]
[372612023,1752703844433,-19631.4,0.00022,2]
[372612024,1752703844443,-214.40824756,0.00022,7]
[372612025,1752703844452,-500.0,0.00022015,2]
[372612026,1752703844462,-812.66,0.00022026,2]
[372612027,1752703844472,-1948.78,0.00022028,2]
[372612028,1752703844482,-1201.02,0.00022028,2]
[372612029,1752703844491,-460.0,0.00022028,2]
[372612030,1752703844501,-1205.18,0.00022028,2]
[372612031,1752703844510,-872.25,0.00022028,2]
[372612032,1752703844520,-722.34,0.00022028,2]
[372612033,1752703844532,-551.27,0.00022029,2]
[372612034,1752703844542,-460.0,0.00022029,2]
[372612035,1752703844551,-460.0,0.00022029,2]
[372612036,1752703844561,-575.13,0.00022029,2]
[372612037,1752703844570,-460.0,0.00022029,2]
[372612038,1752703844580,-796.25,0.00022029,2]
[372612039,1752703844589,-460.0,0.00022029,2]
[372612040,1752703844599,-211.59,0.00022029,2]
[372612041,1752703844610,-1358.34,0.00022029,2]
[372612042,1752703844619,-460.0,0.00022047,2]
[372612043,1752703844630,-460.0,0.00022047,2]
[372612044,1752703844640,-460.0,0.00022047,2]
[372612045,1752703844649,-460.0,0.00022047,2]
[372612046,1752703844658,-460.0,0.00022047,2]
[372612047,1752703844668,-460.0,0.00022047,2]
[372612048,1752703844677,-166.62,0.00022047,2]
[372612049,1752703844686,-465.19,0.00022047,2]
[372612050,1752703844696,-460.0,0.00022047,2]
[372612051,1752703844706,-460.0,0.00022047,2]
[372612052,1752703844715,-500.0,0.0002213,2]
[372612053,1752703844725,-1664.07149989,0.00022176,6]
[372612054,1752703844734,-1500.0,0.0002219,2]
[372612055,1752703844743,-248.82013214,0.00022247,2]
[372612056,1752703844752,-471.88357901,0.00022248,2]
[372612057,1752703844761,-812.66,0.000223,2]
[372612058,1752703844770,-1948.78,0.00022302,2]
[372612059,1752703844780,-1201.02,0.00022302,2]
[372612060,1752703844789,-460.0,0.00022302,2]
[372612061,1752703844798,-1205.18,0.00022302,2]
[372612062,1752703844808,-872.25,0.00022302,2]
[372612063,1752703844817,-722.34,0.00022302,2]
[372612064,1752703844826,-551.27,0.00022303,2]
[372612065,1752703844835,-460.0,0.00022303,2]
[372612066,1752703844845,-460.0,0.00022303,2]
[372612067,1752703844854,-575.13,0.00022303,2]
[372612068,1752703844864,-460.0,0.00022303,2]
[372612069,1752703844874,-796.25,0.00022303,2]
[372612070,1752703844883,-460.0,0.00022303,2]
[372612071,1752703844892,-1358.34,0.00022303,2]
[372612072,1752703844901,-460.0,0.00022321,2]
[372612073,1752703844910,-460.0,0.00022321,2]
[372612074,1752703844919,-460.0,0.00022321,2]
[372612075,1752703844928,-460.0,0.00022321,2]
[372612076,1752703844937,-460.0,0.00022321,2]
[372612077,1752703844946,-460.0,0.00022321,2]
[372612078,1752703844955,-460.0,0.00022321,2]
[372612079,1752703844964,-460.0,0.00022321,2]
[372612080,1752703844974,-460.0,0.00022321,2]
[372612081,1752703844983,-560.0,0.00022371,2]
[372612082,1752703844992,-1664.07149989,0.00022383,7]
[372612083,1752703845002,-1000.0,0.00022388,2]
[372612084,1752703845012,-500.0,0.00022388,2]
[372612085,1752703845021,-215.0738,0.00022489,2]
[372612086,1752703845030,-812.66,0.00022573,2]
[372612087,1752703845040,-1948.78,0.00022576,2]
[372612088,1752703845049,-1201.02,0.00022576,2]
[372612089,1752703845058,-460.0,0.00022576,2]
[372612090,1752703845068,-1205.18,0.00022576,2]
[372612091,1752703845077,-872.25,0.00022576,2]
[372612092,1752703845087,-722.34,0.00022576,2]
[372612093,1752703845097,-551.27,0.00022577,2]
[372612094,1752703845106,-460.0,0.00022577,2]
[372612095,1752703845115,-460.0,0.00022577,2]
[372612096,1752703845124,-575.13,0.00022577,2]
[372612097,1752703845133,-460.0,0.00022577,2]
[372612098,1752703845143,-796.25,0.00022577,2]
[372612099,1752703845152,-460.0,0.00022577,2]
[372612100,1752703845161,-1358.34,0.00022577,2]
[372612101,1752703845172,-1618.86135247,0.00022578,2]
[372612102,1752703845182,-1664.07149989,0.0002259,7]
[372612103,1752703845192,-460.0,0.00022595,2]
[372612104,1752703845202,-460.0,0.00022595,2]
[372612105,1752703845211,-460.0,0.00022595,2]
[372612106,1752703845220,-460.0,0.00022595,2]
[372612107,1752703845230,-514.94,0.00022595,2]
[372612108,1752703845239,-460.0,0.00022595,2]
[372612109,1752703845249,-460.0,0.00022595,2]
[372612110,1752703845260,-460.0,0.00022595,2]
[372612111,1752703845270,-1664.07149989,0.00022797,7]
[372612112,1752703845280,-812.66,0.00022847,2]
[372612113,1752703845290,-1948.78,0.0002285,2]
[372612114,1752703845299,-676.80528296,0.0002285,2]
[372612115,1752703845370,-355.799998,0.0002285,2]
[372612116,1752703845382,-168.41471904,0.0002285,2]
[372612117,1752703845392,-460.0,0.0002285,2]
[372612118,1752703845401,-1205.18,0.0002285,2]
[372612119,1752703845411,-872.25,0.0002285,2]
[372612120,1752703845420,-68.74352907,0.0002285,2]
[372612121,1752703845432,-653.59647093,0.0002285,2]
[372612122,1752703845442,-551.27,0.00022851,2]
[372612123,1752703845451,-460.0,0.00022851,2]
[372612125,1752703845461,-460.0,0.00022851,2]
[372612126,1752703845471,-575.13,0.00022851,2]
[372612127,1752703845480,-460.0,0.00022851,2]
[372612128,1752703845490,-796.25,0.00022851,2]
[372612129,1752703845499,-465.36,0.00022851,2]
[372612130,1752703845509,-1358.34,0.00022851,2]
[372612131,1752703845518,-191.65818076,0.00022869,2]
[372612132,1752703845533,-268.34181924,0.00022869,2]
[372612133,1752703845543,-460.0,0.00022869,2]
[372612134,1752703845552,-460.0,0.00022869,2]
[372612135,1752703845562,-460.0,0.00022869,2]
[372612136,1752703845573,-460.0,0.00022869,2]
[372612137,1752703845583,-460.0,0.00022869,2]
[372612138,1752703845594,-240.0,0.00022919,2]
[372612139,1752703845605,-500.0,0.00022936,2]
[372612140,1752703845616,-160.0,0.00023,3]
[372612142,1752703845626,-160.0,0.00023,3]
[372612144,1752703845636,-160.0,0.00023,3]
[372612146,1752703845646,-1543.67,0.00023,2]
[372612148,1752703845656,-160.0,0.00023,3]
[372612149,1752703845666,-838.99048831,0.00023,3]
[372612151,1752703845676,-215.5496034,0.00023,3]
[372612153,1752703845685,-525.58295679,0.00023,3]
[372612154,1752703845695,-230.8109288,0.00023,3]
[372612155,1752703845705,-1664.07149989,0.00023003,8]
[372612156,1752703845714,-812.66,0.00023121,2]
[372612157,1752703845724,-1948.78,0.00023124,2]
[372612158,1752703845734,-1201.02,0.00023124,2]
[372612159,1752703845744,-205.45,0.00023124,2]
[372612160,1752703845753,-1205.18,0.00023124,2]
[372612161,1752703845762,-872.25,0.00023124,2]
[372612162,1752703845772,-722.34,0.00023124,2]
[372612163,1752703845781,-551.27,0.00023125,2]
[372612164,1752703845791,-560.43,0.00023125,2]
[372612165,1752703845801,-460.0,0.00023125,2]
[372612166,1752703845810,-575.13,0.00023125,2]
[372612167,1752703845820,-460.0,0.00023125,2]
[372612168,1752703845829,-796.25,0.00023125,2]
[372612170,1752703845839,-1358.34,0.00023125,2]
[372612172,1752703845849,-460.0,0.00023143,2]
[372612173,1752703845859,-460.0,0.00023143,2]
[372612174,1752703845869,-460.0,0.00023143,2]
[372612175,1752703845879,-460.0,0.00023143,2]
[372612176,1752703845888,-460.0,0.00023143,2]
[372612177,1752703845898,-460.0,0.00023143,2]
[372612178,1752703845908,-150.0,0.000232,2]
[372612179,1752703845917,-1664.07149989,0.0002321,8]
[372612180,1752703845927,-750.64118505,0.00023216,2]
[372612181,1752703845937,-500.0,0.00023226,2]
[372612182,1752703845946,-1874.66,0.000233,7]
[372612183,1752703845955,-5335.51001893,0.000233,2]
[372612184,1752703845976,-305.22303169,0.00019661,2]
[372612185,1752703845986,-151.0,0.0002112,2]
[372612186,1752703845996,-14295.88998107,0.000233,2]
[372612187,1752703846005,-812.66,0.00023395,2]
[372612188,1752703846015,-1948.78,0.00023398,2]
[372612189,1752703846026,-1201.02,0.00023398,2]
[372612190,1752703846036,-1205.18,0.00023398,2]
[372612191,1752703846047,-872.25,0.00023398,2]
[372612192,1752703846056,-722.34,0.00023398,2]
[372612193,1752703846065,-551.27,0.00023399,2]
[372612194,1752703846075,-460.0,0.00023399,2]
[372612195,1752703846084,-575.13,0.00023399,2]
[372612196,1752703846094,-460.0,0.00023399,2]
[372612197,1752703846104,-796.25,0.00023399,2]
[372612198,1752703846114,-1358.34,0.00023399,2]
[372612199,1752703846124,-460.0,0.00023417,2]
[372612200,1752703846133,-460.0,0.00023417,2]
[372612201,1752703846143,-544.7,0.00023417,2]
[372612202,1752703846153,-156.3328619,0.00023417,2]
[372612203,1752703846165,-303.6671381,0.00023417,2]
[372612204,1752703846176,-460.0,0.00023417,2]
[372612205,1752703846185,-1664.07149989,0.00023417,9]
[372612206,1752703846195,-3122.59,0.000235,7]
[372612207,1752703846205,-6730.69809542,0.000236,7]
[372612208,1752703846217,-2387.8,0.000236,7]
[372612209,1752703846229,-538.8155538,0.000236,7]
[372612210,1752703846240,-5703.01635078,0.000236,7]
[372612211,1752703846250,-946.60053071,0.00023624,9]
[372612212,1752703848399,-656.36,0.00019279,3]
[372612213,1752703848409,-460.0,0.00019289,2]
[372612214,1752703848418,-460.0,0.00019563,2]
[372612215,1752703848428,-460.0,0.00019837,2]
[372612216,1752703848437,-460.0,0.0002011,2]
[372612217,1752703848447,-460.0,0.00020111,2]
[372612218,1752703848456,-460.0,0.00020384,2]
[372612219,1752703848466,-460.0,0.00020385,2]
[372612220,1752703848475,-1312.72,0.00020649,3]
[372612221,1752703848486,-460.0,0.00020658,2]
[372612222,1752703848495,-460.0,0.00020659,2]
[372612223,1752703848505,-305.22303169,0.00020684,2]
[372612224,1752703848514,-460.0,0.00020932,2]
[372612225,1752703848525,-460.0,0.00020933,2]
[372612226,1752703848538,-151.0,0.0002112,2]
[372612227,1752703848547,-460.0,0.00021207,2]
[372612228,1752703848557,-240.95,0.00021481,2]
[372612229,1752703848567,-16225.14378046,0.00022851,2]
[372612230,1752703848576,-717.47096918,0.00023624,9]
[372612231,1752703848586,-812.66,0.00023669,2]
[372612232,1752703848596,-1948.78,0.00023672,2]
[372612233,1752703848607,-1201.02,0.00023672,2]
[372612234,1752703848618,-1205.18,0.00023672,2]
[372612235,1752703848628,-872.25,0.00023672,2]
[372612236,1752703848638,-722.34,0.00023672,2]
[372612237,1752703848647,-551.27,0.00023673,2]
[372612238,1752703848657,-460.0,0.00023673,2]
[372612239,1752703848667,-575.13,0.00023673,2]
[372612240,1752703848676,-460.0,0.00023673,2]
[372612241,1752703848686,-796.25,0.00023673,2]
[372612242,1752703848696,-1358.34,0.00023673,2]
[372612243,1752703848706,-460.0,0.00023691,2]
[372612244,1752703848716,-213.04,0.00023691,2]
[372612245,1752703848726,-460.0,0.00023691,2]
[372612246,1752703848735,-460.0,0.00023691,2]
[372612247,1752703848745,-151.0,0.000238,9]
[372612248,1752703848755,-1664.07149989,0.00023831,10]
[372612249,1752703848764,-223.0315306,0.00023858,2]
[372612250,1752703848774,-812.66,0.00023943,2]
[372612251,1752703848783,-1948.78,0.00023946,2]
[372612252,1752703848793,-1201.02,0.00023946,2]
[372612253,1752703848802,-1205.18,0.00023946,2]
[372612254,1752703848812,-872.25,0.00023946,2]
[372612255,1752703848821,-722.34,0.00023946,2]
[372612256,1752703848830,-551.27,0.00023947,2]
[372612257,1752703848840,-507.29,0.00023947,2]
[372612258,1752703848849,-575.13,0.00023947,2]
[372612259,1752703848859,-460.0,0.00023947,2]
[372612260,1752703848868,-796.25,0.00023947,2]
[372612261,1752703848879,-1358.34,0.00023947,2]
[372612262,1752703848888,-577.41662643,0.00023965,2]
[372612263,1752703848897,-460.0,0.00023965,2]
[372612264,1752703848907,-460.0,0.00023965,2]
[372612265,1752703848917,-160.0,0.00024,7]
[372612266,1752703848927,-215.5496034,0.00024,7]
[372612267,1752703848936,-150.0,0.00024014,2]
[372612268,1752703848946,-2849.57228149,0.00024014,2]
[372612269,1752703848955,-1664.07149989,0.00024038,10]
[372612270,1752703848965,-812.66,0.00024217,2]
[372612271,1752703848975,-1948.78,0.0002422,2]
[372612272,1752703848984,-1201.02,0.0002422,2]
[372612273,1752703848993,-1205.18,0.0002422,2]
[372612274,1752703849003,-872.25,0.0002422,2]
[372612275,1752703849012,-722.34,0.0002422,2]
[372612276,1752703849022,-551.27,0.00024221,2]
[372612277,1752703849032,-575.13,0.00024221,2]
[372612278,1752703849041,-460.0,0.00024221,2]
[372612279,1752703849050,-796.25,0.00024221,2]
[372612280,1752703849060,-1358.34,0.00024221,2]
[372612281,1752703849070,-460.0,0.00024239,2]
[372612282,1752703849079,-1664.07149989,0.00024245,10]
[372612283,1752703849089,-500.0,0.00024322,2]
[372612284,1752703849098,-150.0,0.00024347,2]
[372612285,1752703849108,-150.0,0.00024347,2]
[372612286,1752703849119,-245.394,0.00024347,2]
[372612287,1752703849128,-647.0,0.00024347,2]
[372612288,1752703849138,-2155.0,0.00024347,2]
[372612289,1752703849147,-968.0,0.00024347,2]
[372612290,1752703849157,-151.0,0.000244,10]
[372612291,1752703849166,-159.7314836,0.0002444,2]
[372612292,1752703849176,-576.8651031,0.0002444,2]
[372612293,1752703849186,-576.8651031,0.0002444,2]
[372612294,1752703849195,-159.7314836,0.0002444,2]
[372612295,1752703849205,-159.7314836,0.0002444,2]
[372612296,1752703849214,-576.8651031,0.0002444,2]
[372612297,1752703849224,-159.7314836,0.0002444,2]
[372612298,1752703849234,-576.8651031,0.0002444,2]
[372612299,1752703849243,-159.7314836,0.0002444,2]
[372612300,1752703849253,-576.8651031,0.0002444,2]
[372612301,1752703849262,-156.0401448,0.0002444,2]
[372612302,1752703849272,-1664.07149989,0.00024452,11]
[372612303,1752703849281,-812.66,0.00024491,2]
[372612304,1752703849291,-1948.78,0.00024494,2]
[372612305,1752703849300,-1201.02,0.00024494,2]
[372612306,1752703849309,-1205.18,0.00024494,2]
[372612307,1752703849319,-872.25,0.00024494,2]
[372612308,1752703849328,-722.34,0.00024494,2]
[372612309,1752703849338,-551.27,0.00024495,2]
[372612310,1752703849347,-575.13,0.00024495,2]
[372612311,1752703849356,-460.0,0.00024495,2]
[372612312,1752703849367,-796.25,0.00024495,2]
[372612313,1752703849377,-1358.34,0.00024495,2]
[372612314,1752703849387,-250.0,0.000245,2]
[372612315,1752703849396,-750.64118505,0.00024509,2]
[372612316,1752703849406,-460.0,0.00024513,2]
[372612317,1752703849415,-1874.66,0.000246,7]
[372612318,1752703849425,-19631.4,0.000246,2]
[372612319,1752703849434,-1664.07149989,0.00024659,11]
[372612320,1752703849444,-158.03292145,0.000247,4]
[372612321,1752703849453,-159.13686405,0.000247,4]
[372612322,1752703849463,-812.66,0.00024765,2]
[372612323,1752703849473,-1948.78,0.00024768,2]
[372612324,1752703849483,-1201.02,0.00024768,2]
[372612325,1752703849493,-1205.18,0.00024768,2]
[372612326,1752703849503,-872.25,0.00024768,2]
[372612327,1752703849512,-722.34,0.00024768,2]
[372612328,1752703849522,-551.27,0.00024769,2]
[372612329,1752703849536,-575.13,0.00024769,2]
[372612330,1752703849545,-460.0,0.00024769,2]
[372612331,1752703849554,-796.25,0.00024769,2]
[372612332,1752703849564,-1358.34,0.00024769,2]
[372612333,1752703849575,-460.0,0.00024787,2]
[372612334,1752703849584,-3122.59,0.000248,7]
[372612335,1752703849593,-150000.0,0.000248,2]
[372612336,1752703849603,-104096.37552809,0.000248,2]
[372612337,1752703849616,-15842.28255805,0.000248,2]
[372612338,1752703849673,-301.7542578,0.0002444,2]
[372612339,1752703883139,202.21470722,0.00018442,2]
[372612341,1752704062815,24900.0,0.00017808,2]
[372612342,1752704105635,7412.72751203,0.00018151,2]
[372612343,1752704105660,9633.27248797,0.00018151,2]
[372612346,1752704149534,30366.72751203,0.00017712,2]
[372612347,1752704149559,30153.46247537,0.00017712,2]
[372612349,1752704225688,285.482645,0.00013699,2]
[372612350,1752704240130,421.6962264,0.00017738,2]
[372612351,1752704257458,222.7061137,0.00027397,120]
[372612353,1752704280141,306.912966,0.00018076,2]
[372612354,1752704280590,306.912966,0.00018076,2]
[372612355,1752704281034,306.912966,0.00018076,2]
[372612356,1752704281504,306.91296494,0.00018077,2]
[372612357,1752704281962,153.45648247,0.00018077,2]
[372612362,1752704420805,2181.6409973,0.00017692,2]
[372612363,1752704455361,5576.60931052,0.00017879,2]
[372612364,1752704455388,3190.53636438,0.00017879,2]
[372612373,1752704874652,242.08640295,0.00018,2]
[372612376,1752704881844,826.9930064,0.00017739,2]
[372612377,1752704896237,712.8898603,0.00017672,2]
[372612380,1752704914389,242.0799084,0.00017,2]
[372612381,1752704918677,579.85375111,0.000149,2]
[372612382,1752704918906,1000.0,0.0001,2]
[372612383,1752704922534,9094.07003722,0.00015,2]
[372612384,1752704923345,210.43655035,0.00016,2]
[372612390,1752704924882,418.4724359,0.0001,2]
[372612391,1752704939214,2868.7897867,0.00017739,2]
[372612426,1752705032128,-219.3784528,0.00018531,2]
[372612428,1752705032138,-326.27584861,0.0001863,2]
[372612430,1752705032148,-326.27584857,0.00018631,2]
[372612432,1752705032158,-326.27584857,0.00018631,2]
[372612434,1752705032168,-137.71932668,0.00018632,2]
[372612437,1752705032180,-188.55652189,0.00018632,2]
[372612439,1752705032190,-263.17164978,0.00018632,2]
[372612441,1752705032199,-326.27584857,0.00018632,2]
[372612443,1752705032209,-300.0,0.0001873,2]
[372612445,1752705032219,-300.0,0.0001873,2]
[372612447,1752705032228,-300.0,0.0001873,2]
[372612449,1752705032238,-300.0,0.0001873,2]
[372612451,1752705032248,-1200.0,0.0001873,2]
[372612453,1752705032257,-500.0,0.00018731,2]
[372612455,1752705032267,-500.0,0.00018731,2]
[372612457,1752705032277,-293.28419716,0.00018731,2]
[372612459,1752705032288,-206.71580284,0.00018731,2]
[372612461,1752705032298,-500.0,0.00018731,2]
[372612463,1752705032308,-500.0,0.00018731,2]
[372612465,1752705032318,-500.0,0.00018731,2]
[372612467,1752705032327,-223.76854245,0.00018731,2]
[372612469,1752705032337,-500.0,0.00018731,2]
[372612471,1752705032346,-441.62648484,0.00018731,2]
[372612473,1752705032355,-798.0,0.00018731,2]
[372612475,1752705032365,-460.0,0.00018731,2]
[372612477,1752705032375,-28.71591872,0.00018731,2]
[372612480,1752705032387,-431.28408128,0.00018731,2]
[372612482,1752705032396,-460.0,0.00018732,2]
[372612484,1752705032406,-460.0,0.00018732,2]
[372612486,1752705032416,-460.0,0.00018732,2]
[372612488,1752705032426,-460.0,0.00018732,2]
[372612490,1752705032436,-462.30843912,0.00018732,2]
[372612492,1752705032445,-460.0,0.00018732,2]
[372612494,1752705032455,-460.0,0.00018733,2]
[372612496,1752705032464,-460.0,0.00018733,2]
[372612498,1752705032474,-460.0,0.00018733,2]
[372612512,1752705032629,-487.2,0.00018733,2]
[372612514,1752705032643,-354.18197609,0.00018733,2]
[372612535,1752705038086,-460.0,0.00018732,2]
[372612536,1752705038096,-105.81802391,0.00018733,2]
[372612537,1752705038106,-460.0,0.00018733,2]
[372612538,1752705038116,-460.0,0.00018733,2]
[372612539,1752705038126,-460.0,0.00018733,2]
[372612540,1752705038136,-171.43040393,0.00018735,2]
[372612541,1752705038149,-288.56959607,0.00018735,2]
[372612542,1752705038159,-460.0,0.00018735,2]
[372612543,1752705038169,-460.0,0.00018735,2]
[372612544,1752705038179,-460.0,0.00018735,2]
[372612546,1752705038189,-460.0,0.00018735,2]
[372612548,1752705038198,-460.0,0.00018735,2]
[372612549,1752705038208,-460.0,0.00018735,2]
[372612550,1752705038217,-460.0,0.00018735,2]
[372612552,1752705038227,-460.0,0.00018735,2]
[372612554,1752705038237,-608.32,0.00018735,2]
[372612556,1752705038247,-460.0,0.00018735,2]
[372612558,1752705038257,-460.0,0.00018735,2]
[372612560,1752705038266,-460.0,0.00018735,2]
[372612562,1752705038276,-484.1598168,0.00018736,2]
[372612564,1752705038285,-460.0,0.00018736,2]
[372612566,1752705038295,-209.89003244,0.00018736,2]
[372612568,1752705038304,-460.0,0.00018737,2]
[372612570,1752705038314,-460.0,0.00018737,2]
[372612572,1752705038325,-460.0,0.00018737,2]
[372612574,1752705038335,-460.0,0.00018737,2]
[372612576,1752705038344,-460.0,0.00018737,2]
[372612578,1752705038354,-460.0,0.00018737,2]
[372612580,1752705038363,-460.0,0.00018737,2]
[372612582,1752705038372,-460.0,0.00018737,2]
[372612584,1752705038383,-460.0,0.00018737,2]
[372612585,1752705038392,-460.0,0.00018737,2]
[372612587,1752705038402,-500.0,0.00018737,2]
[372612589,1752705038411,-289.184877,0.00018737,2]
[372612590,1752705038421,-460.0,0.00018737,2]
[372612591,1752705038430,-460.0,0.00018737,2]
[372612592,1752705038440,-460.0,0.00018737,2]
[372612593,1752705038450,-460.0,0.00018737,2]
[372612594,1752705038459,-460.0,0.00018737,2]
[372612595,1752705038469,-460.0,0.00018737,2]
[372612596,1752705038478,-460.0,0.00018737,2]
[372612597,1752705038488,-460.0,0.00018737,2]
[372612598,1752705038499,-460.0,0.00018737,2]
[372612599,1752705038509,-460.0,0.00018737,2]
[372612600,1752705038518,-460.0,0.00018737,2]
[372612601,1752705038528,-460.0,0.00018737,2]
[372612602,1752705038538,-460.0,0.00018737,2]
[372612603,1752705038548,-437.65219357,0.00018737,2]
[372612604,1752705038561,-22.34780643,0.00018737,2]
[372612605,1752705038570,-460.0,0.00018737,2]
[372612606,1752705038580,-460.0,0.00018737,2]
[372612607,1752705038591,-499.51,0.00018737,2]
[372612608,1752705038601,-460.0,0.00018737,2]
[372612609,1752705038610,-460.0,0.00018737,2]
[372612610,1752705038620,-292.17800341,0.00018741,2]
[372612623,1752705041366,-500.0,0.0001873,2]
[372612624,1752705041377,-500.0,0.0001873,2]
[372612625,1752705041388,-500.0,0.0001873,2]
[372612626,1752705041398,-500.0,0.0001873,2]
[372612627,1752705041409,-500.0,0.0001873,2]
[372612628,1752705041419,-500.0,0.0001873,2]
[372612629,1752705041429,-500.0,0.0001873,2]
[372612630,1752705041438,-500.0,0.0001873,2]
[372612631,1752705041449,-500.0,0.0001873,2]
[372612632,1752705041460,-391.85436088,0.0001873,2]
[372612633,1752705041470,-186.73220406,0.0001873,2]
[372612634,1752705041482,-500.0,0.0001873,2]
[372612635,1752705041494,-500.0,0.0001873,2]
[372612636,1752705041504,-500.0,0.0001873,2]
[372612637,1752705041514,-500.0,0.0001873,2]
[372612638,1752705041525,-500.0,0.0001873,2]
[372612639,1752705041535,-500.0,0.0001873,2]
[372612640,1752705041545,-500.0,0.0001873,2]
[372612641,1752705041555,-500.0,0.0001873,2]
[372612642,1752705041567,-160.18072054,0.0001873,2]
[372612643,1752705041579,-500.0,0.0001873,2]
[372612644,1752705041591,-300.0,0.0001873,2]
[372612645,1752705041601,-300.0,0.0001873,2]
[372612646,1752705041611,-635.48726424,0.0001873,2]
[372612647,1752705041622,-500.0,0.0001873,2]
[372612648,1752705041634,-221.12498701,0.0001873,2]
[372612649,1752705041645,-167.82199659,0.00018741,2]
[372612650,1752705041655,-500.0,0.00018773,2]
[372612651,1752705041666,-1562.51293185,0.000189,2]
[372612652,1752705041678,-460.0,0.00019005,2]
[372612653,1752705041688,-460.0,0.00019006,2]
[372612654,1752705041699,-460.0,0.00019006,2]
[372612655,1752705041709,-460.0,0.00019006,2]
[372612656,1752705041719,-460.0,0.00019007,2]
[372612657,1752705041728,-460.0,0.00019007,2]
[372612658,1752705041738,-487.2,0.00019007,2]
[372612659,1752705041748,-460.0,0.00019007,2]
[372612660,1752705041758,-460.0,0.00019007,2]
[372612661,1752705041768,-460.0,0.00019007,2]
[372612662,1752705041778,-460.0,0.00019009,2]
[372612663,1752705041787,-460.0,0.00019009,2]
[372612664,1752705041798,-460.0,0.00019009,2]
[372612665,1752705041809,-460.0,0.00019009,2]
[372612666,1752705041819,-460.0,0.00019009,2]
[372612667,1752705041828,-460.0,0.00019009,2]
[372612668,1752705041839,-359.01659589,0.0001901,2]
[372612669,1752705041849,-460.0,0.00019011,2]